[Event "Titled Tuesday Blitz February 28 Early 2023"]
[White "Vlassov, Nikolai"]
[Black "Mazurkiewicz, Michal"]
[WhiteFideId "4103360"]
[BlackFideId "1124943"]
[WhiteElo "2324"]
[BlackElo "2054"]
[Result "1/2-1/2"]
[Round "03"]
[TimeControl "180+2"]
[Date "2023.02.28"]
[WhiteClock "0:00:11"]
[BlackClock "0:00:04"]

1. e4 {[%clk 0:03:00]}  d6 {[%clk 0:02:59]} 2. f4 {[%clk 0:03:00]}  g6 {[%clk 0:02:59]} 3. Nc3 {[%clk 0:02:59]}  Bg7 {[%clk 0:02:59]} 4. Nf3 {[%clk 0:02:59]}  c5 {[%clk 0:03:00]} 5. d3 {[%clk 0:02:59]}  Nc6 {[%clk 0:03:00]} 6. h3 {[%clk 0:02:59]}  e6 {[%clk 0:03:01]} 7. g4 {[%clk 0:02:59]}  Nge7 {[%clk 0:03:02]} 8. Bg2 {[%clk 0:02:59]}  O-O {[%clk 0:03:02]} 9. O-O {[%clk 0:02:59]}  f5 {[%clk 0:03:02]} 10. Be3 {[%clk 0:02:58]}  Nd4 {[%clk 0:03:00]} 11. Qd2 {[%clk 0:02:55]}  Rb8 {[%clk 0:02:53]} 12. Nd1 {[%clk 0:02:55]}  b5 {[%clk 0:02:50]} 13. c3 {[%clk 0:02:48]}  Nxf3+ {[%clk 0:02:49]} 14. Bxf3 {[%clk 0:02:48]}  b4 {[%clk 0:02:43]} 15. d4 {[%clk 0:02:47]}  bxc3 {[%clk 0:02:42]} 16. bxc3 {[%clk 0:02:47]}  cxd4 {[%clk 0:02:07]} 17. cxd4 {[%clk 0:02:44]}  Bb7 {[%clk 0:01:58]} 18. Nc3 {[%clk 0:02:35]}  Qa5 {[%clk 0:01:36]} 19. Rab1 {[%clk 0:02:19]}  Rfc8 {[%clk 0:01:30]} 20. Nd5 {[%clk 0:02:07]}  Qxd2 {[%clk 0:01:29]} 21. Nxe7+ {[%clk 0:02:07]}  Kf7 {[%clk 0:01:30]} 22. Bxd2 {[%clk 0:02:07]}  Kxe7 {[%clk 0:01:30]} 23. e5 {[%clk 0:01:41]}  Bxf3 {[%clk 0:01:28]} 24. Rxb8 {[%clk 0:01:37]}  Rxb8 {[%clk 0:01:29]} 25. Rxf3 {[%clk 0:01:37]}  Kd7 {[%clk 0:01:18]} 26. Ra3 {[%clk 0:01:34]}  Rb7 {[%clk 0:01:18]} 27. Ra6 {[%clk 0:01:31]}  Bf8 {[%clk 0:01:15]} 28. gxf5 {[%clk 0:01:24]}  gxf5 {[%clk 0:01:15]} 29. a3 {[%clk 0:01:13]}  Rb2 {[%clk 0:00:50]} 30. Bb4 {[%clk 0:01:03]}  Bh6 {[%clk 0:00:32]} 31. exd6 {[%clk 0:00:46]}  Bxf4 {[%clk 0:00:24]} 32. Rxa7+ {[%clk 0:00:45]}  Kc6 {[%clk 0:00:23]} 33. d7 {[%clk 0:00:45]}  Bg5 {[%clk 0:00:16]} 34. Ba5 {[%clk 0:00:45]}  Kd5 {[%clk 0:00:10]} 35. d8=Q+ {[%clk 0:00:42]}  Bxd8 {[%clk 0:00:11]} 36. Bxd8 {[%clk 0:00:43]}  Ke4 {[%clk 0:00:11]} 37. Bf6 {[%clk 0:00:33]}  Kf3 {[%clk 0:00:11]} 38. Rg7 {[%clk 0:00:24]}  Ra2 {[%clk 0:00:05]} 39. Be7 {[%clk 0:00:22]}  Rd2 {[%clk 0:00:04]} 40. Bc5 {[%clk 0:00:21]}  f4 {[%clk 0:00:01]} 41. h4 {[%clk 0:00:17]}  Rc2 {[%clk 0:00:01]} 42. Bb6 {[%clk 0:00:15]}  Ra2 {[%clk 0:00:01]} 43. Bc5 {[%clk 0:00:15]}  Rc2 {[%clk 0:00:02]} 44. Rg5 {[%clk 0:00:14]}  e5 {[%clk 0:00:01]} 45. Rxe5 {[%clk 0:00:13]}  Rc1+ {[%clk 0:00:02]} 46. Kh2 {[%clk 0:00:14]}  Rc2+ {[%clk 0:00:02]} 47. Kh3 {[%clk 0:00:14]}  Rc1 {[%clk 0:00:03]} 48. Kh2 {[%clk 0:00:13]}  Rc2+ {[%clk 0:00:04]} 49. Kh1 {[%clk 0:00:11]}  Rc1+ {[%clk 0:00:04]} 50. Kh2 {[%clk 0:00:11]} 1/2-1/2


[Site "https://www.chess.com"]

[Event "Titled Tuesday Blitz February 28 Early 2023"]
[White "Seemann, Jakub"]
[Black "Vedder, Richard"]
[WhiteFideId "21874697"]
[BlackFideId "1004166"]
[WhiteElo "2364"]
[BlackElo "2168"]
[Result "1/2-1/2"]
[Round "03"]
[TimeControl "180+2"]
[Date "2023.02.28"]
[WhiteClock "0:01:05"]
[BlackClock "0:01:09"]

1. b3 {[%clk 0:03:00]}  Nf6 {[%clk 0:02:57]} 2. Bb2 {[%clk 0:03:01]}  e6 {[%clk 0:02:58]} 3. f4 {[%clk 0:03:00]}  b6 {[%clk 0:02:58]} 4. Nf3 {[%clk 0:03:00]}  Bb7 {[%clk 0:02:59]} 5. e3 {[%clk 0:03:01]}  c5 {[%clk 0:02:59]} 6. Be2 {[%clk 0:03:00]}  d6 {[%clk 0:03:00]} 7. O-O {[%clk 0:03:00]}  Be7 {[%clk 0:03:00]} 8. d3 {[%clk 0:03:00]}  Nbd7 {[%clk 0:03:01]} 9. h3 {[%clk 0:02:54]}  O-O {[%clk 0:03:00]} 10. Nbd2 {[%clk 0:02:54]}  a5 {[%clk 0:02:55]} 11. a4 {[%clk 0:02:54]}  d5 {[%clk 0:02:52]} 12. Ne5 {[%clk 0:02:53]}  Nxe5 {[%clk 0:02:51]} 13. Bxe5 {[%clk 0:02:54]}  Nd7 {[%clk 0:02:50]} 14. Bb2 {[%clk 0:02:54]}  Bf6 {[%clk 0:02:49]} 15. Bxf6 {[%clk 0:02:55]}  Qxf6 {[%clk 0:02:50]} 16. Nf3 {[%clk 0:02:55]}  e5 {[%clk 0:02:41]} 17. d4 {[%clk 0:02:55]}  exd4 {[%clk 0:02:38]} 18. exd4 {[%clk 0:02:55]}  Rfe8 {[%clk 0:02:37]} 19. Ne5 {[%clk 0:02:54]}  Qd6 {[%clk 0:02:34]} 20. c3 {[%clk 0:02:54]}  f6 {[%clk 0:02:32]} 21. Nxd7 {[%clk 0:02:54]}  Qxd7 {[%clk 0:02:33]} 22. Bb5 {[%clk 0:02:52]}  Bc6 {[%clk 0:02:32]} 23. dxc5 {[%clk 0:02:52]}  bxc5 {[%clk 0:02:29]} 24. Qd3 {[%clk 0:02:46]}  Rab8 {[%clk 0:02:24]} 25. Rad1 {[%clk 0:02:44]}  Bxb5 {[%clk 0:02:23]} 26. axb5 {[%clk 0:02:45]}  Qxb5 {[%clk 0:02:16]} 27. Qxd5+ {[%clk 0:02:44]}  Kh8 {[%clk 0:02:16]} 28. Rfe1 {[%clk 0:02:40]}  h6 {[%clk 0:02:09]} 29. Qf7 {[%clk 0:02:35]}  Rf8 {[%clk 0:01:59]} 30. Qg6 {[%clk 0:02:30]}  Rbd8 {[%clk 0:01:47]} 31. Rxd8 {[%clk 0:02:28]}  Rxd8 {[%clk 0:01:47]} 32. Re7 {[%clk 0:02:29]}  Rg8 {[%clk 0:01:44]} 33. Qf7 {[%clk 0:02:28]}  Qd3 {[%clk 0:01:41]} 34. Ra7 {[%clk 0:01:46]}  Qxc3 {[%clk 0:01:37]} 35. Qc4 {[%clk 0:01:46]}  Qe3+ {[%clk 0:01:33]} 36. Kh2 {[%clk 0:01:46]}  Rb8 {[%clk 0:01:24]} 37. Rxa5 {[%clk 0:01:37]}  Qxb3 {[%clk 0:01:21]} 38. Rxc5 {[%clk 0:01:37]}  Qxc4 {[%clk 0:01:20]} 39. Rxc4 {[%clk 0:01:38]}  f5 {[%clk 0:01:19]} 40. Kg3 {[%clk 0:01:38]}  Kh7 {[%clk 0:01:16]} 41. Rc7 {[%clk 0:01:33]}  Rb2 {[%clk 0:01:16]} 42. Re7 {[%clk 0:01:30]}  Kg6 {[%clk 0:01:14]} 43. Re6+ {[%clk 0:01:30]}  Kf7 {[%clk 0:01:14]} 44. Rc6 {[%clk 0:01:31]}  g6 {[%clk 0:01:10]} 45. Rd6 {[%clk 0:01:16]}  Ra2 {[%clk 0:01:09]} 46. Kf3 {[%clk 0:01:15]}  Ra3+ {[%clk 0:01:09]} 47. Kf2 {[%clk 0:01:16]}  Ra2+ {[%clk 0:01:09]} 48. Kf3 {[%clk 0:01:13]}  Ra3+ {[%clk 0:01:09]} 49. Ke2 {[%clk 0:01:14]}  Ra2+ {[%clk 0:01:09]} 50. Kf3 {[%clk 0:01:05]} 1/2-1/2


[Site "https://www.chess.com"]

[Event "Titled Tuesday Blitz February 28 Early 2023"]
[White "Han, Yichen"]
[Black "Wahedi, Ahmad Siar"]
[WhiteFideId "1054430"]
[BlackFideId "4651260"]
[WhiteElo "2342"]
[BlackElo "2439"]
[Result "0-1"]
[Round "03"]
[TimeControl "180+2"]
[Date "2023.02.28"]
[WhiteClock "0:00:04"]
[BlackClock "0:00:35"]

1. d4 {[%clk 0:03:00]}  d5 {[%clk 0:02:59]} 2. c4 {[%clk 0:03:00]}  c6 {[%clk 0:03:00]} 3. Nf3 {[%clk 0:03:00]}  Nf6 {[%clk 0:02:59]} 4. e3 {[%clk 0:02:59]}  e6 {[%clk 0:02:57]} 5. Bd3 {[%clk 0:02:56]}  Nbd7 {[%clk 0:02:56]} 6. Nbd2 {[%clk 0:02:51]}  Bd6 {[%clk 0:02:50]} 7. O-O {[%clk 0:02:51]}  O-O {[%clk 0:02:49]} 8. e4 {[%clk 0:02:51]}  e5 {[%clk 0:02:49]} 9. cxd5 {[%clk 0:02:33]}  cxd5 {[%clk 0:02:48]} 10. exd5 {[%clk 0:02:32]}  exd4 {[%clk 0:02:45]} 11. Ne4 {[%clk 0:02:26]}  Bb8 {[%clk 0:02:31]} 12. d6 {[%clk 0:02:05]}  Nxe4 {[%clk 0:02:19]} 13. Bxe4 {[%clk 0:02:02]}  Bxd6 {[%clk 0:02:20]} 14. Qxd4 {[%clk 0:01:54]}  Qb6 {[%clk 0:02:19]} 15. Qd3 {[%clk 0:01:38]}  h6 {[%clk 0:02:14]} 16. Be3 {[%clk 0:01:36]}  Nc5 {[%clk 0:02:06]} 17. Qc2 {[%clk 0:01:27]}  Qc7 {[%clk 0:01:56]} 18. Rac1 {[%clk 0:01:18]}  Nxe4 {[%clk 0:01:54]} 19. Qxc7 {[%clk 0:01:11]}  Bxc7 {[%clk 0:01:55]} 20. Rxc7 {[%clk 0:01:10]}  b6 {[%clk 0:01:54]} 21. Rd1 {[%clk 0:01:02]}  Be6 {[%clk 0:01:53]} 22. Nd4 {[%clk 0:00:56]}  Bxa2 {[%clk 0:01:50]} 23. b3 {[%clk 0:00:49]}  Nc5 {[%clk 0:01:49]} 24. Ra1 {[%clk 0:00:39]}  Bxb3 {[%clk 0:01:44]} 25. Rxc5 {[%clk 0:00:39]}  bxc5 {[%clk 0:01:44]} 26. Nxb3 {[%clk 0:00:39]}  c4 {[%clk 0:01:45]} 27. Nd4 {[%clk 0:00:35]}  Rfc8 {[%clk 0:01:41]} 28. Nb5 {[%clk 0:00:34]}  a5 {[%clk 0:01:39]} 29. Rc1 {[%clk 0:00:29]}  a4 {[%clk 0:01:38]} 30. Nd6 {[%clk 0:00:28]}  Rc6 {[%clk 0:01:36]} 31. Nf5 {[%clk 0:00:23]}  Kf8 {[%clk 0:01:28]} 32. Nd4 {[%clk 0:00:22]}  Rcc8 {[%clk 0:01:26]} 33. Nb5 {[%clk 0:00:18]}  a3 {[%clk 0:01:24]} 34. Ra1 {[%clk 0:00:17]}  a2 {[%clk 0:01:23]} 35. Nc3 {[%clk 0:00:17]}  Ra3 {[%clk 0:01:22]} 36. Bd4 {[%clk 0:00:14]}  Rb3 {[%clk 0:01:14]} 37. Nxa2 {[%clk 0:00:11]}  Ra8 {[%clk 0:01:13]} 38. g3 {[%clk 0:00:10]}  Kg8 {[%clk 0:01:04]} 39. Kg2 {[%clk 0:00:08]}  Rd3 {[%clk 0:01:03]} 40. Be5 {[%clk 0:00:06]}  Rd2 {[%clk 0:01:02]} 41. Nb4 {[%clk 0:00:06]}  Rxa1 {[%clk 0:01:00]} 42. Bxa1 {[%clk 0:00:07]}  f6 {[%clk 0:00:54]} 43. Bc3 {[%clk 0:00:06]}  Rd6 {[%clk 0:00:52]} 44. Nc2 {[%clk 0:00:06]}  Kf7 {[%clk 0:00:50]} 45. Ne3 {[%clk 0:00:06]}  Rd3 {[%clk 0:00:50]} 46. Be1 {[%clk 0:00:06]}  c3 {[%clk 0:00:50]} 47. Kf3 {[%clk 0:00:06]}  c2 {[%clk 0:00:41]} 48. Bd2 {[%clk 0:00:04]}  Rxd2 {[%clk 0:00:40]} 49. Kg2 {[%clk 0:00:04]}  c1=Q {[%clk 0:00:35]} 0-1


[Site "https://www.chess.com"]

[Event "Titled Tuesday Blitz February 28 Early 2023"]
[White "Tymrakiewicz, Rafal"]
[Black "Alvarez Calzadilla, Jose Avelino"]
[WhiteFideId "1108832"]
[BlackFideId "3526151"]
[WhiteElo "2151"]
[BlackElo "2310"]
[Result "0-1"]
[Round "03"]
[TimeControl "180+2"]
[Date "2023.02.28"]
[WhiteClock "0:00:11"]
[BlackClock "0:01:17"]

1. e4 {[%clk 0:02:55]}  e5 {[%clk 0:02:59]} 2. Nf3 {[%clk 0:02:54]}  Nc6 {[%clk 0:03:00]} 3. Bb5 {[%clk 0:02:54]}  a6 {[%clk 0:03:00]} 4. Bxc6 {[%clk 0:02:54]}  dxc6 {[%clk 0:03:00]} 5. Nc3 {[%clk 0:02:55]}  f6 {[%clk 0:02:58]} 6. d4 {[%clk 0:02:55]}  exd4 {[%clk 0:02:58]} 7. Qxd4 {[%clk 0:02:55]}  Qxd4 {[%clk 0:02:58]} 8. Nxd4 {[%clk 0:02:56]}  Bd7 {[%clk 0:02:59]} 9. Be3 {[%clk 0:02:55]}  O-O-O {[%clk 0:02:58]} 10. Rd1 {[%clk 0:02:45]}  Bb4 {[%clk 0:02:57]} 11. a3 {[%clk 0:02:25]}  Bxc3+ {[%clk 0:02:55]} 12. bxc3 {[%clk 0:02:26]}  Ne7 {[%clk 0:02:53]} 13. O-O {[%clk 0:02:25]}  c5 {[%clk 0:02:46]} 14. Ne2 {[%clk 0:02:20]}  b6 {[%clk 0:02:42]} 15. Nf4 {[%clk 0:02:11]}  Ng6 {[%clk 0:02:23]} 16. Nxg6 {[%clk 0:02:01]}  hxg6 {[%clk 0:02:24]} 17. Rd2 {[%clk 0:02:01]}  Bc6 {[%clk 0:02:18]} 18. Rxd8+ {[%clk 0:01:55]}  Rxd8 {[%clk 0:02:17]} 19. f3 {[%clk 0:01:55]}  Ba4 {[%clk 0:02:14]} 20. Rc1 {[%clk 0:01:47]}  Kb7 {[%clk 0:02:14]} 21. Kf2 {[%clk 0:01:47]}  Kc6 {[%clk 0:02:15]} 22. c4 {[%clk 0:01:39]}  Kb7 {[%clk 0:02:09]} 23. Ke2 {[%clk 0:01:38]}  Be8 {[%clk 0:02:09]} 24. Rd1 {[%clk 0:01:24]}  Rxd1 {[%clk 0:02:07]} 25. Kxd1 {[%clk 0:01:25]}  Bf7 {[%clk 0:02:08]} 26. h4 {[%clk 0:01:12]}  Bxc4 {[%clk 0:02:07]} 27. g4 {[%clk 0:01:12]}  Kc6 {[%clk 0:02:02]} 28. Bd2 {[%clk 0:01:09]}  Kb5 {[%clk 0:01:52]} 29. Bc3 {[%clk 0:01:01]}  Be6 {[%clk 0:01:48]} 30. Kd2 {[%clk 0:00:59]}  Kc4 {[%clk 0:01:42]} 31. Bb2 {[%clk 0:00:56]}  b5 {[%clk 0:01:40]} 32. g5 {[%clk 0:00:23]}  f5 {[%clk 0:01:38]} 33. Bxg7 {[%clk 0:00:22]}  fxe4 {[%clk 0:01:38]} 34. f4 {[%clk 0:00:12]}  Bf5 {[%clk 0:01:34]} 35. Be5 {[%clk 0:00:09]}  c6 {[%clk 0:01:32]} 36. Bc7 {[%clk 0:00:10]}  b4 {[%clk 0:01:31]} 37. axb4 {[%clk 0:00:10]}  cxb4 {[%clk 0:01:30]} 38. Be5 {[%clk 0:00:10]}  a5 {[%clk 0:01:29]} 39. Ke3 {[%clk 0:00:10]}  a4 {[%clk 0:01:28]} 40. Bf6 {[%clk 0:00:11]}  b3 {[%clk 0:01:22]} 41. cxb3+ {[%clk 0:00:11]}  Kxb3 {[%clk 0:01:22]} 42. Kd4 {[%clk 0:00:11]}  a3 {[%clk 0:01:18]} 43. Kc5 {[%clk 0:00:11]}  e3 {[%clk 0:01:17]} 0-1


[Site "https://www.chess.com"]

[Event "Titled Tuesday Blitz February 28 Early 2023"]
[White "Sargissyan, Sargis"]
[Black "Fiorito, Joaquin"]
[WhiteFideId "13303210"]
[BlackFideId "180173"]
[WhiteElo "2109"]
[BlackElo "2157"]
[Result "1-0"]
[Round "03"]
[TimeControl "180+2"]
[Date "2023.02.28"]
[WhiteClock "0:00:19"]
[BlackClock "0:00:12"]

1. e4 {[%clk 0:03:00]}  c6 {[%clk 0:02:59]} 2. Nc3 {[%clk 0:02:58]}  d5 {[%clk 0:03:00]} 3. Nf3 {[%clk 0:02:59]}  Bg4 {[%clk 0:03:00]} 4. h3 {[%clk 0:03:00]}  Bxf3 {[%clk 0:03:00]} 5. Qxf3 {[%clk 0:03:00]}  Nf6 {[%clk 0:03:00]} 6. Be2 {[%clk 0:03:00]}  e6 {[%clk 0:03:00]} 7. O-O {[%clk 0:03:00]}  Nbd7 {[%clk 0:03:00]} 8. d4 {[%clk 0:02:57]}  dxe4 {[%clk 0:02:57]} 9. Nxe4 {[%clk 0:02:57]}  Nxe4 {[%clk 0:02:58]} 10. Qxe4 {[%clk 0:02:58]}  Nf6 {[%clk 0:02:59]} 11. Qh4 {[%clk 0:02:51]}  Be7 {[%clk 0:02:57]} 12. c3 {[%clk 0:02:50]}  O-O {[%clk 0:02:47]} 13. Bd3 {[%clk 0:02:48]}  c5 {[%clk 0:02:38]} 14. Bg5 {[%clk 0:02:46]}  g6 {[%clk 0:02:31]} 15. Rad1 {[%clk 0:02:35]}  cxd4 {[%clk 0:02:10]} 16. Bc2 {[%clk 0:02:04]}  Nd5 {[%clk 0:02:10]} 17. Bxe7 {[%clk 0:02:04]}  Qxe7 {[%clk 0:02:10]} 18. Qxe7 {[%clk 0:02:04]}  Nxe7 {[%clk 0:02:11]} 19. Rxd4 {[%clk 0:02:04]}  Rfd8 {[%clk 0:02:09]} 20. Rfd1 {[%clk 0:02:04]}  Nc6 {[%clk 0:02:08]} 21. Rd7 {[%clk 0:01:58]}  Rab8 {[%clk 0:01:43]} 22. Be4 {[%clk 0:01:57]}  Rxd7 {[%clk 0:01:26]} 23. Rxd7 {[%clk 0:01:56]}  Nd8 {[%clk 0:01:27]} 24. f4 {[%clk 0:01:37]}  Kf8 {[%clk 0:01:24]} 25. Kf1 {[%clk 0:01:34]}  Ke8 {[%clk 0:01:21]} 26. Rc7 {[%clk 0:01:34]}  a5 {[%clk 0:01:18]} 27. c4 {[%clk 0:01:23]}  b6 {[%clk 0:01:16]} 28. Ke2 {[%clk 0:01:17]}  h5 {[%clk 0:01:03]} 29. h4 {[%clk 0:01:12]}  Kf8 {[%clk 0:00:57]} 30. Ke3 {[%clk 0:01:10]}  Kg7 {[%clk 0:00:56]} 31. Kd4 {[%clk 0:01:02]}  Kf6 {[%clk 0:00:56]} 32. b3 {[%clk 0:00:54]}  b5 {[%clk 0:00:20]} 33. c5 {[%clk 0:00:52]}  b4 {[%clk 0:00:18]} 34. c6 {[%clk 0:00:51]}  e5+ {[%clk 0:00:14]} 35. fxe5+ {[%clk 0:00:48]}  Kg7 {[%clk 0:00:15]} 36. Bd5 {[%clk 0:00:41]}  Kf8 {[%clk 0:00:12]} 37. Rd7 {[%clk 0:00:25]}  Rc8 {[%clk 0:00:12]} 38. c7 {[%clk 0:00:19]} 1-0


[Site "https://www.chess.com"]

[Event "Titled Tuesday Blitz February 28 Early 2023"]
[White "Chernov, Mikhail"]
[Black "Ambartsumova, Karina"]
[WhiteFideId "24143170"]
[BlackFideId "4166299"]
[WhiteElo "2113"]
[BlackElo "2319"]
[Result "1/2-1/2"]
[Round "03"]
[TimeControl "180+2"]
[Date "2023.02.28"]
[WhiteClock "0:00:04"]
[BlackClock "0:00:03"]

1. e4 {[%clk 0:03:00]}  c5 {[%clk 0:03:00]} 2. Nf3 {[%clk 0:02:48]}  Nc6 {[%clk 0:02:59]} 3. d4 {[%clk 0:02:48]}  cxd4 {[%clk 0:03:00]} 4. Nxd4 {[%clk 0:02:49]}  Qb6 {[%clk 0:03:01]} 5. Nb3 {[%clk 0:02:47]}  Nf6 {[%clk 0:03:01]} 6. Nc3 {[%clk 0:02:46]}  e6 {[%clk 0:03:01]} 7. Qe2 {[%clk 0:02:47]}  Bb4 {[%clk 0:03:01]} 8. Bd2 {[%clk 0:02:47]}  a5 {[%clk 0:03:00]} 9. a3 {[%clk 0:02:41]}  Bxc3 {[%clk 0:03:00]} 10. Bxc3 {[%clk 0:02:41]}  e5 {[%clk 0:02:58]} 11. O-O-O {[%clk 0:02:29]}  O-O {[%clk 0:02:58]} 12. h4 {[%clk 0:01:48]}  a4 {[%clk 0:02:37]} 13. Nd2 {[%clk 0:01:44]}  d5 {[%clk 0:02:34]} 14. exd5 {[%clk 0:01:29]}  Nxd5 {[%clk 0:02:34]} 15. Nc4 {[%clk 0:01:30]}  Qc5 {[%clk 0:01:51]} 16. Bd2 {[%clk 0:00:15]}  Bf5 {[%clk 0:01:17]} 17. Be3 {[%clk 0:00:14]}  Nxe3 {[%clk 0:00:55]} 18. Qxe3 {[%clk 0:00:15]}  Nd4 {[%clk 0:00:51]} 19. Bd3 {[%clk 0:00:15]}  Bxd3 {[%clk 0:00:41]} 20. Qxd3 {[%clk 0:00:13]}  Rfd8 {[%clk 0:00:35]} 21. Kb1 {[%clk 0:00:12]}  b5 {[%clk 0:00:32]} 22. Ne3 {[%clk 0:00:10]}  Qb6 {[%clk 0:00:08]} 23. c3 {[%clk 0:00:09]}  Ne6 {[%clk 0:00:07]} 24. Qe4 {[%clk 0:00:08]}  Qc7 {[%clk 0:00:06]} 25. h5 {[%clk 0:00:05]}  h6 {[%clk 0:00:05]} 26. Qg4 {[%clk 0:00:05]}  Ng5 {[%clk 0:00:04]} 27. Nf5 {[%clk 0:00:04]}  e4 {[%clk 0:00:05]} 28. Qe2 {[%clk 0:00:04]}  Qe5 {[%clk 0:00:05]} 29. Ne3 {[%clk 0:00:04]}  Rab8 {[%clk 0:00:04]} 30. Rxd8+ {[%clk 0:00:04]}  Rxd8 {[%clk 0:00:05]} 31. Rd1 {[%clk 0:00:04]}  Rxd1+ {[%clk 0:00:05]} 32. Qxd1 {[%clk 0:00:05]}  Qf4 {[%clk 0:00:05]} 33. Qd8+ {[%clk 0:00:05]}  Kh7 {[%clk 0:00:06]} 34. Qd2 {[%clk 0:00:05]}  Ne6 {[%clk 0:00:05]} 35. Kc2 {[%clk 0:00:04]}  Nc5 {[%clk 0:00:05]} 36. Nd5 {[%clk 0:00:04]}  Qxd2+ {[%clk 0:00:05]} 37. Kxd2 {[%clk 0:00:05]}  Nd3 {[%clk 0:00:06]} 38. Nc7 {[%clk 0:00:05]}  Nxb2 {[%clk 0:00:06]} 39. Nxb5 {[%clk 0:00:05]}  Nc4+ {[%clk 0:00:06]} 40. Ke2 {[%clk 0:00:05]}  g6 {[%clk 0:00:07]} 41. f3 {[%clk 0:00:06]}  exf3+ {[%clk 0:00:06]} 42. gxf3 {[%clk 0:00:06]}  gxh5 {[%clk 0:00:06]} 43. Kd3 {[%clk 0:00:07]}  Ne5+ {[%clk 0:00:07]} 44. Ke4 {[%clk 0:00:08]}  Nc4 {[%clk 0:00:07]} 45. Kd4 {[%clk 0:00:08]}  Nd2 {[%clk 0:00:07]} 46. Ke3 {[%clk 0:00:08]}  Nb3 {[%clk 0:00:08]} 47. c4 {[%clk 0:00:08]}  h4 {[%clk 0:00:08]} 48. Kf4 {[%clk 0:00:08]}  h5 {[%clk 0:00:07]} 49. Nd6 {[%clk 0:00:08]}  Kg6 {[%clk 0:00:07]} 50. Ne4 {[%clk 0:00:08]}  Nd4 {[%clk 0:00:07]} 51. c5 {[%clk 0:00:09]}  Nc6 {[%clk 0:00:06]} 52. Ke3 {[%clk 0:00:08]}  Kf5 {[%clk 0:00:06]} 53. Nd6+ {[%clk 0:00:07]}  Ke6 {[%clk 0:00:06]} 54. Nb5 {[%clk 0:00:05]}  Kd5 {[%clk 0:00:06]} 55. Nc3+ {[%clk 0:00:06]}  Kxc5 {[%clk 0:00:06]} 56. Nxa4+ {[%clk 0:00:06]}  Kc4 {[%clk 0:00:06]} 57. Nb6+ {[%clk 0:00:06]}  Kb5 {[%clk 0:00:06]} 58. Nd5 {[%clk 0:00:05]}  Ka4 {[%clk 0:00:06]} 59. Nf6 {[%clk 0:00:05]}  Kxa3 {[%clk 0:00:06]} 60. Nxh5 {[%clk 0:00:05]}  Kb4 {[%clk 0:00:06]} 61. Kf4 {[%clk 0:00:05]}  Kc4 {[%clk 0:00:01]} 62. Kg4 {[%clk 0:00:05]}  Ne5+ {[%clk 0:00:02]} 63. Kxh4 {[%clk 0:00:05]}  Nxf3+ {[%clk 0:00:02]} 64. Kg4 {[%clk 0:00:05]}  Nd4 {[%clk 0:00:03]} 65. Kg5 {[%clk 0:00:04]}  Kd5 {[%clk 0:00:03]} 66. Kf6 {[%clk 0:00:05]}  Ne6 {[%clk 0:00:03]} 67. Kxf7 {[%clk 0:00:04]} 1/2-1/2


[Site "https://www.chess.com"]

[Event "Titled Tuesday Blitz February 28 Early 2023"]
[White "Dinu, Dumitru-Daniel"]
[Black "Itgelt, Khuyagtsogt"]
[WhiteFideId "1208403"]
[BlackFideId "4902912"]
[WhiteElo "2240"]
[BlackElo "2227"]
[Result "0-1"]
[Round "03"]
[TimeControl "180+2"]
[Date "2023.02.28"]
[WhiteClock "0:01:07"]
[BlackClock "0:00:07"]

1. e4 {[%clk 0:03:00]}  e5 {[%clk 0:02:58]} 2. Nf3 {[%clk 0:03:00]}  Nc6 {[%clk 0:02:58]} 3. Bb5 {[%clk 0:03:00]}  a6 {[%clk 0:02:58]} 4. Ba4 {[%clk 0:02:59]}  Nf6 {[%clk 0:02:58]} 5. d3 {[%clk 0:02:58]}  b5 {[%clk 0:02:54]} 6. Bb3 {[%clk 0:02:58]}  Be7 {[%clk 0:02:50]} 7. O-O {[%clk 0:02:57]}  O-O {[%clk 0:02:49]} 8. c3 {[%clk 0:02:57]}  d6 {[%clk 0:02:40]} 9. Re1 {[%clk 0:02:55]}  Na5 {[%clk 0:02:39]} 10. Bc2 {[%clk 0:02:54]}  c5 {[%clk 0:02:38]} 11. Nbd2 {[%clk 0:02:54]}  Nc6 {[%clk 0:02:37]} 12. Nf1 {[%clk 0:02:53]}  Re8 {[%clk 0:02:37]} 13. Ng3 {[%clk 0:02:53]}  g6 {[%clk 0:02:38]} 14. h3 {[%clk 0:02:49]}  Bf8 {[%clk 0:02:36]} 15. Bg5 {[%clk 0:02:45]}  h6 {[%clk 0:02:35]} 16. Bxf6 {[%clk 0:02:45]}  Qxf6 {[%clk 0:02:36]} 17. Nh2 {[%clk 0:02:38]}  h5 {[%clk 0:02:29]} 18. Qf3 {[%clk 0:02:37]}  Qg5 {[%clk 0:02:17]} 19. Bb3 {[%clk 0:02:34]}  Ra7 {[%clk 0:02:15]} 20. Bd5 {[%clk 0:02:28]}  Nd8 {[%clk 0:02:15]} 21. a4 {[%clk 0:02:23]}  b4 {[%clk 0:01:57]} 22. cxb4 {[%clk 0:02:23]}  cxb4 {[%clk 0:01:58]} 23. Qe3 {[%clk 0:02:22]}  Qxe3 {[%clk 0:01:55]} 24. fxe3 {[%clk 0:02:17]}  Ne6 {[%clk 0:01:41]} 25. Rac1 {[%clk 0:02:12]}  Nc5 {[%clk 0:01:40]} 26. Red1 {[%clk 0:02:06]}  Bh6 {[%clk 0:01:35]} 27. Nhf1 {[%clk 0:02:04]}  h4 {[%clk 0:01:33]} 28. Ne2 {[%clk 0:02:03]}  Nxa4 {[%clk 0:01:19]} 29. Bc6 {[%clk 0:01:50]}  Bd7 {[%clk 0:01:19]} 30. Bxa4 {[%clk 0:01:50]}  Bxa4 {[%clk 0:01:19]} 31. Rd2 {[%clk 0:01:50]}  Bb5 {[%clk 0:01:12]} 32. Kf2 {[%clk 0:01:43]}  a5 {[%clk 0:01:07]} 33. Ra1 {[%clk 0:01:41]}  a4 {[%clk 0:01:06]} 34. Nh2 {[%clk 0:01:33]}  Rc7 {[%clk 0:00:46]} 35. Nf3 {[%clk 0:01:32]}  Rec8 {[%clk 0:00:36]} 36. Ne1 {[%clk 0:01:28]}  f5 {[%clk 0:00:32]} 37. exf5 {[%clk 0:01:25]}  gxf5 {[%clk 0:00:33]} 38. Ng1 {[%clk 0:01:24]}  d5 {[%clk 0:00:16]} 39. Ngf3 {[%clk 0:01:24]}  d4 {[%clk 0:00:15]} 40. Re2 {[%clk 0:01:17]}  dxe3+ {[%clk 0:00:11]} 41. Kg1 {[%clk 0:01:17]}  e4 {[%clk 0:00:09]} 42. Nxh4 {[%clk 0:01:17]}  exd3 {[%clk 0:00:07]} 43. Nxf5 {[%clk 0:01:15]}  dxe2 {[%clk 0:00:06]} 44. Nxh6+ {[%clk 0:01:15]}  Kh7 {[%clk 0:00:06]} 45. Nf5 {[%clk 0:01:16]}  Rc1 {[%clk 0:00:07]} 46. Rxc1 {[%clk 0:01:13]}  Rxc1 {[%clk 0:00:08]} 47. Nxe3 {[%clk 0:01:13]}  Rxe1+ {[%clk 0:00:08]} 48. Kh2 {[%clk 0:01:11]}  Rf1 {[%clk 0:00:07]} 49. Nc2 {[%clk 0:01:09]}  Bd3 {[%clk 0:00:07]} 50. Nxb4 {[%clk 0:01:08]}  Be4 {[%clk 0:00:08]} 51. b3 {[%clk 0:01:07]}  axb3 {[%clk 0:00:07]} 0-1


[Site "https://www.chess.com"]